[Event "1er Festival international de Cassis 2022"]
[Site "Cassis"]
[Date "2022.05.28"]
[Round "5.3"]
[White "Gozzoli, Yannick"]
[Black "Bacrot, Alexandre"]
[Result "1-0"]
[TimeControl "1 h 30 + 30 s"]
[WhiteElo "2591"]
[BlackElo "2341"]

1. Nf3 {[%clk 01:30:38]} {[%emt 00:00:21]} d5 {[%clk 01:30:54]} {[%emt
00:00:06]} 2. d4 {[%clk 01:30:50]} {[%emt 00:00:17]} Nf6 {[%clk 01:31:12]}
{[%emt 00:00:13]} 3. c4 {[%clk 01:31:14]} {[%emt 00:00:06]} e6 {[%clk
01:31:39]} {[%emt 00:00:04]} 4. Nc3 {[%clk 01:31:33]} {[%emt 00:00:10]} Be7
{[%clk 01:31:46]} {[%emt 00:00:23]} 5. Bf4 {[%clk 01:31:57]} {[%emt 00:00:06]}
O-O {[%clk 01:31:33]} {[%emt 00:00:43]} 6. e3 {[%clk 01:30:57]} {[%emt
00:01:30]} b6 {[%clk 01:29:59]} {[%emt 00:02:04]} 7. Be2 {[%clk 01:30:59]}
{[%emt 00:00:28]} Bb7 {[%clk 01:29:12]} {[%emt 00:01:17]} 8. O-O {[%clk
01:31:14]} {[%emt 00:00:15]} c5 {[%clk 01:24:05]} {[%emt 00:05:38]} 9. cxd5
{[%clk 01:26:10]} {[%emt 00:05:33]} Nxd5 {[%clk 01:22:40]} {[%emt 00:01:55]} 10.
Nxd5 {[%clk 01:25:59]} {[%emt 00:00:41]} Qxd5 {[%clk 01:17:38]} {[%emt
00:05:32]} 11. dxc5 {[%clk 01:26:16]} {[%emt 00:00:13]} bxc5 {[%clk 01:16:06]}
{[%emt 00:02:02]} 12. Qc2 {[%clk 01:26:00]} {[%emt 00:00:47]} Nd7 {[%clk
01:14:01]} {[%emt 00:02:35]} 13. Rfd1 {[%clk 01:20:56]} {[%emt 00:05:33]} Qc6
{[%clk 01:14:13]} {[%emt 00:00:19]} 14. Bf1 {[%clk 01:20:51]} {[%emt 00:00:35]}
Rfd8 {[%clk 01:06:33]} {[%emt 00:08:09]} 15. Rac1 {[%clk 01:19:01]} {[%emt
00:02:19]} Rac8 {[%clk 01:05:38]} {[%emt 00:01:26]} 16. b3 {[%clk 01:18:29]}
{[%emt 00:01:02]} h6 {[%clk 00:58:37]} {[%emt 00:07:31]} 17. h3 {[%clk
01:14:16]} {[%emt 00:04:43]} Ba8 {[%clk 00:41:09]} {[%emt 00:17:58]} 18. Qe2
{[%clk 00:58:17]} {[%emt 00:16:29]} Nf6 {[%clk 00:32:49]} {[%emt 00:08:51]} 19.
Ne5 {[%clk 00:57:14]} {[%emt 00:01:32]} Qb7 {[%clk 00:32:52]} {[%emt 00:00:27]}
20. Nc4 {[%clk 00:57:13]} {[%emt 00:00:31]} Rd5 {[%clk 00:30:22]} {[%emt
00:03:01]} 21. f3 {[%clk 00:53:00]} {[%emt 00:04:42]} Rxd1 {[%clk 00:28:50]}
{[%emt 00:02:02]} 22. Rxd1 {[%clk 00:53:15]} {[%emt 00:00:15]} Rd8 {[%clk
00:29:00]} {[%emt 00:00:19]} 23. e4 {[%clk 00:53:19]} {[%emt 00:00:25]} Rxd1
{[%clk 00:28:31]} {[%emt 00:01:00]} 24. Qxd1 {[%clk 00:53:45]} {[%emt
00:00:04]} Qd7 {[%clk 00:28:43]} {[%emt 00:00:18]} 25. Qxd7 {[%clk 00:52:28]}
{[%emt 00:01:47]} Nxd7 {[%clk 00:29:08]} {[%emt 00:00:06]} 26. Bc7 {[%clk
00:52:47]} {[%emt 00:00:10]} Kf8 {[%clk 00:27:38]} {[%emt 00:02:01]} 27. Nd6
{[%clk 00:50:40]} {[%emt 00:02:36]} Nb6 {[%clk 00:27:20]} {[%emt 00:00:48]} 28.
Nb5 {[%clk 00:42:33]} {[%emt 00:08:38]} c4 {[%clk 00:26:52]} {[%emt 00:00:57]}
29. Nxa7 {[%clk 00:39:16]} {[%emt 00:03:47]} Bc5+ {[%clk 00:26:39]} {[%emt
00:00:43]} 30. Kh1 {[%clk 00:39:45]} {[%emt 00:00:01]} cxb3 {[%clk 00:25:11]}
{[%emt 00:01:58]} 31. axb3 {[%clk 00:40:08]} {[%emt 00:00:07]} f5 {[%clk
00:22:59]} {[%emt 00:02:41]} 32. b4 {[%clk 00:40:14]} {[%emt 00:00:24]} Be3
{[%clk 00:22:39]} {[%emt 00:00:50]} 33. Bd6+ {[%clk 00:40:29]} {[%emt
00:00:14]} Kf7 {[%clk 00:22:58]} {[%emt 00:00:12]} 34. Bc5 {[%clk 00:40:29]}
{[%emt 00:00:30]} Bxc5 {[%clk 00:21:58]} {[%emt 00:01:30]} 35. bxc5 {[%clk
00:37:57]} {[%emt 00:03:03]} Na4 {[%clk 00:22:23]} {[%emt 00:00:05]} 36. c6
{[%clk 00:38:20]} {[%emt 00:00:07]} fxe4 {[%clk 00:22:49]} {[%emt 00:00:04]} 37.
c7 {[%clk 00:34:23]} {[%emt 00:04:27]} Bb7 {[%clk 00:23:09]} {[%emt 00:00:11]}
38. fxe4 {[%clk 00:30:37]} {[%emt 00:04:16]} Nb6 {[%clk 00:23:33]} {[%emt
00:00:06]} 39. e5 {[%clk 00:31:03]} {[%emt 00:00:04]} Nd7 {[%emt 00:00:11]} 40.
Nb5 {[%clk 00:29:13]} {[%emt 00:02:19]} 1-0

[Event "1er Festival international de Cassis 2022"]
[Site "Cassis"]
[Date "2022.05.28"]
[Round "5.4"]
[White "Kunin, Vitaly"]
[Black "Kuhn, Clement"]
[Result "1/2-1/2"]
[TimeControl "1 h 30 + 30 s"]
[WhiteElo "2539"]
[BlackElo "2280"]

1. d4 {[%clk 01:27:26]} {[%emt 00:03:16]} Nf6 {[%clk 01:30:57]} {[%emt
00:00:21]} 2. c4 {[%clk 01:27:41]} {[%emt 00:00:15]} e6 {[%clk 01:31:05]}
{[%emt 00:00:21]} 3. Nf3 {[%clk 01:26:37]} {[%emt 00:01:33]} Bb4+ {[%clk
01:31:08]} {[%emt 00:00:28]} 4. Nbd2 {[%clk 01:26:01]} {[%emt 00:01:06]} O-O
{[%clk 01:31:04]} {[%emt 00:00:35]} 5. a3 {[%clk 01:26:22]} {[%emt 00:00:09]}
Be7 {[%clk 01:31:29]} {[%emt 00:00:05]} 6. e3 {[%clk 01:25:39]} {[%emt
00:01:13]} d6 {[%clk 01:27:26]} {[%emt 00:04:33]} 7. b4 {[%clk 01:24:59]}
{[%emt 00:01:10]} Nbd7 {[%clk 01:27:28]} {[%emt 00:00:28]} 8. Bb2 {[%clk
01:25:19]} {[%emt 00:00:09]} b6 {[%clk 01:24:34]} {[%emt 00:03:25]} 9. Be2
{[%clk 01:22:20]} {[%emt 00:03:29]} Bb7 {[%clk 01:23:58]} {[%emt 00:01:07]} 10.
O-O {[%clk 01:22:36]} {[%emt 00:00:11]} c5 {[%clk 01:22:37]} {[%emt 00:01:53]}
11. Qb3 {[%clk 01:21:33]} {[%emt 00:01:32]} Qc7 {[%clk 01:20:12]} {[%emt
00:02:56]} 12. Rfd1 {[%clk 01:20:34]} {[%emt 00:01:28]} Rac8 {[%clk 01:17:11]}
{[%emt 00:03:31]} 13. Rac1 {[%clk 01:20:31]} {[%emt 00:00:33]} Qb8 {[%clk
01:12:32]} {[%emt 00:05:10]} 14. h3 {[%clk 01:19:47]} {[%emt 00:01:12]} Qa8
{[%emt 00:07:43]} 15. Bc3 {[%clk 01:03:49]} {[%emt 00:09:32]} cxd4 {[%clk
01:07:10]} {[%emt 00:05:37]} 16. exd4 {[%clk 01:02:03]} {[%emt 00:02:16]} Rc7
{[%clk 01:07:22]} {[%emt 00:00:18]} 17. a4 {[%clk 00:55:06]} {[%emt 00:07:27]}
Rfc8 {[%clk 01:05:04]} {[%emt 00:02:49]} 18. a5 {[%clk 00:50:39]} {[%emt
00:04:56]} bxa5 {[%clk 01:03:23]} {[%emt 00:02:11]} 19. b5 {[%clk 00:50:13]}
{[%emt 00:00:56]} a4 {[%clk 01:00:31]} {[%emt 00:03:22]} 20. Qxa4 {[%clk
00:47:07]} {[%emt 00:03:35]} Nb6 {[%clk 01:00:04]} {[%emt 00:00:58]} 21. Qb3
{[%clk 00:45:56]} {[%emt 00:01:41]} Ne4 {[%clk 00:58:08]} {[%emt 00:02:26]} 22.
Ba5 {[%clk 00:42:58]} {[%emt 00:03:28]} Qb8 {[%clk 00:53:17]} {[%emt 00:05:22]}
23. Nf1 {[%clk 00:33:35]} {[%emt 00:09:50]} Ng5 {[%clk 00:45:31]} {[%emt
00:08:17]} 24. Ne1 {[%clk 00:30:21]} {[%emt 00:03:41]} Ne4 {[%clk 00:42:17]}
{[%emt 00:03:48]} 25. Nf3 {[%clk 00:26:32]} {[%emt 00:04:18]} Ng5 {[%clk
00:42:23]} {[%emt 00:00:24]} 26. Ne1 {[%clk 00:25:39]} {[%emt 00:01:22]} Ne4
{[%clk 00:42:43]} {[%emt 00:00:11]} 27. Ra1 {[%clk 00:24:09]} {[%emt 00:02:00]}
e5 {[%clk 00:36:23]} {[%emt 00:06:50]} 28. d5 {[%clk 00:21:31]} {[%emt
00:03:07]} f5 {[%clk 00:33:00]} {[%emt 00:03:55]} 29. Nc2 {[%clk 00:18:44]}
{[%emt 00:03:17]} Bxd5 {[%clk 00:26:46]} {[%emt 00:06:44]} 30. cxd5 {[%clk
00:19:02]} {[%emt 00:00:12]} Rxc2 {[%clk 00:26:55]} {[%emt 00:00:21]} 31. Bd3
{[%clk 00:19:10]} {[%emt 00:00:22]} R2c5 {[%clk 00:24:49]} {[%emt 00:02:36]} 32.
Bb4 {[%emt 00:11:41]} R5c7 {[%clk 00:24:04]} 33. Ne3 {[%clk 00:08:28]} {[%emt
00:01:17]} g6 {[%clk 00:23:37]} {[%emt 00:00:57]} 34. Bxe4 {[%clk 00:07:53]}
{[%emt 00:01:05]} fxe4 {[%clk 00:24:06]} {[%emt 00:00:01]} 35. Qb1 {[%clk
00:04:52]} {[%emt 00:03:31]} Nc4 {[%clk 00:23:19]} {[%emt 00:01:18]} 36. Bd2
{[%clk 00:02:52]} {[%emt 00:02:29]} Nxd2 {[%clk 00:18:36]} {[%emt 00:05:13]} 37.
Rxd2 {[%clk 00:03:17]} {[%emt 00:00:06]} Bg5 {[%clk 00:14:03]} {[%emt
00:05:03]} 38. Qxe4 {[%clk 00:02:46]} {[%emt 00:01:01]} Qxb5 {[%clk 00:13:31]}
{[%emt 00:01:02]} 39. Rdd1 {[%clk 00:03:09]} {[%emt 00:00:06]} Qd7 {[%clk
00:12:46]} {[%emt 00:01:14]} 40. h4 {[%clk 00:02:59]} {[%emt 00:00:40]} Bxe3
{[%clk 00:12:19]} {[%emt 00:00:57]} 41. Qxe3 {[%clk 00:03:22]} {[%emt
00:00:07]} Qf7 {[%clk 00:10:41]} {[%emt 00:02:08]} 42. Ra6 {[%clk 00:03:19]}
{[%emt 00:00:33]} Rc3 {[%clk 00:08:00]} {[%emt 00:03:11]} 1/2-1/2

[Event "1er Festival international de Cassis 2022"]
[Site "Cassis"]
[Date "2022.05.28"]
[Round "5.5"]
[White "Derige Kane, Yan"]
[Black "Yankelevich, Lev"]
[Result "0-1"]
[TimeControl "1 h 30 + 30 s"]
[WhiteElo "2161"]
[BlackElo "2473"]

1. d4 {[%clk 01:24:10]} {[%emt 00:06:48]} Nf6 {[%clk 01:30:56]} {[%emt
00:00:04]} 2. Bg5 {[%clk 01:24:28]} {[%emt 00:00:13]} d5 {[%clk 01:31:19]}
{[%emt 00:00:07]} 3. e3 {[%clk 01:23:46]} {[%emt 00:01:12]} c5 {[%clk
01:31:41]} {[%emt 00:00:08]} 4. Nd2 {[%clk 01:20:22]} {[%emt 00:03:54]} cxd4
{[%clk 01:31:48]} {[%emt 00:00:22]} 5. exd4 {[%clk 01:20:43]} {[%emt 00:00:09]}
Qb6 {[%clk 01:32:15]} {[%emt 00:00:03]} 6. Ngf3 {[%clk 01:21:07]} {[%emt
00:00:06]} Nc6 {[%clk 01:32:05]} {[%emt 00:00:40]} 7. Nb3 {[%clk 01:19:47]}
{[%emt 00:01:50]} Bf5 {[%clk 01:32:13]} {[%emt 00:00:22]} 8. Bd3 {[%clk
01:04:43]} {[%emt 00:15:34]} Bxd3 {[%clk 01:31:39]} {[%emt 00:01:04]} 9. Qxd3
{[%clk 01:05:08]} {[%emt 00:00:06]} e6 {[%clk 01:32:06]} {[%emt 00:00:03]} 10.
O-O {[%clk 01:05:11]} {[%emt 00:00:27]} Bd6 {[%clk 01:21:18]} {[%emt 00:11:18]}
11. Qe3 {[%clk 00:48:59]} {[%emt 00:16:41]} Ng4 {[%clk 01:16:38]} {[%emt
00:05:10]} 12. Qd2 {[%clk 00:42:41]} {[%emt 00:06:47]} Qc7 {[%clk 01:15:41]}
{[%emt 00:01:27]} 13. h3 {[%clk 00:41:18]} {[%emt 00:01:54]} Nf6 {[%clk
01:07:33]} {[%emt 00:08:39]} 14. Qe2 {[%clk 00:36:50]} {[%emt 00:04:57]} Ne4
{[%clk 01:07:42]} {[%emt 00:00:21]} 15. c4 {[%clk 00:35:25]} {[%emt 00:01:55]}
O-O {[%clk 00:55:51]} {[%emt 00:12:22]} 16. c5 {[%clk 00:21:41]} {[%emt
00:14:13]} Bf4 {[%clk 00:55:12]} {[%emt 00:01:09]} 17. Bxf4 {[%clk 00:18:59]}
{[%emt 00:03:12]} Qxf4 {[%clk 00:55:38]} {[%emt 00:00:03]} 18. Nc1 {[%clk
00:17:49]} {[%emt 00:01:40]} Qf6 {[%clk 00:56:05]} {[%emt 00:00:04]} 19. Qe3
{[%clk 00:17:52]} {[%emt 00:00:27]} b6 {[%clk 00:55:42]} {[%emt 00:00:53]} 20.
Nd3 {[%clk 00:17:35]} {[%emt 00:00:46]} bxc5 {[%clk 00:55:53]} {[%emt
00:00:20]} 21. dxc5 {[%clk 00:17:57]} {[%emt 00:00:08]} Rab8 {[%clk 00:56:07]}
{[%emt 00:00:16]} 22. Rab1 {[%clk 00:17:00]} {[%emt 00:01:26]} a5 {[%clk
00:54:07]} {[%emt 00:02:31]} 23. Rfc1 {[%clk 00:14:25]} {[%emt 00:03:04]} Rb5
{[%clk 00:53:46]} {[%emt 00:00:51]} 24. Nd2 {[%clk 00:06:13]} {[%emt 00:08:42]}
Qd4 {[%clk 00:51:32]} {[%emt 00:02:44]} 25. Nxe4 {[%clk 00:04:19]} {[%emt
00:02:24]} dxe4 {[%clk 00:52:00]} {[%emt 00:00:02]} 26. Nf4 {[%clk 00:04:13]}
{[%emt 00:00:35]} Qxe3 {[%clk 00:52:09]} {[%emt 00:00:22]} 27. fxe3 {[%clk
00:04:38]} {[%emt 00:00:05]} Rd8 {[%clk 00:52:37]} {[%emt 00:00:02]} 28. b3
{[%clk 00:03:43]} {[%emt 00:01:25]} Rd2 {[%clk 00:52:11]} {[%emt 00:00:56]} 29.
a3 {[%clk 00:02:50]} {[%emt 00:01:24]} g5 {[%clk 00:50:06]} {[%emt 00:02:35]}
30. Nh5 {[%clk 00:03:07]} {[%emt 00:00:12]} f5 {[%clk 00:50:34]} {[%emt
00:00:02]} 31. Rd1 {[%clk 00:00:50]} {[%emt 00:02:47]} Rd3 {[%clk 00:48:32]}
{[%emt 00:02:33]} 32. Kf2 {[%clk 00:00:34]} {[%emt 00:00:45]} Rxc5 {[%clk
00:48:48]} {[%emt 00:00:14]} 33. b4 {[%clk 00:00:45]} {[%emt 00:00:19]} Rc2+
{[%clk 00:47:14]} {[%emt 00:02:04]} 34. Kg1 {[%clk 00:01:08]} {[%emt 00:00:07]}
axb4 {[%clk 00:47:39]} {[%emt 00:00:05]} 35. axb4 {[%clk 00:01:33]} {[%emt
00:00:05]} Nxb4 {[%clk 00:47:48]} {[%emt 00:00:21]} 36. Rdc1 {[%clk 00:00:58]}
{[%emt 00:01:04]} Rxc1+ {[%clk 00:46:03]} {[%emt 00:02:15]} 37. Rxc1 {[%clk
00:01:25]} {[%emt 00:00:03]} Nd5 {[%clk 00:46:27]} {[%emt 00:00:06]} 38. Rc8+
{[%clk 00:00:55]} {[%emt 00:01:00]} Kf7 {[%clk 00:46:53]} {[%emt 00:00:04]} 39.
Ra8 {[%clk 00:00:35]} {[%emt 00:00:50]} Nxe3 {[%clk 00:47:13]} {[%emt
00:00:10]} 40. Ra7+ {[%clk 00:00:32]} {[%emt 00:00:34]} Kg6 {[%clk 00:47:38]}
{[%emt 00:00:05]} 41. Ng7 {[%clk 00:00:42]} {[%emt 00:00:20]} Rd2 {[%clk
00:47:34]} {[%emt 00:00:34]} 42. Nxe6 {[%clk 00:00:50]} {[%emt 00:00:22]} Rxg2+
{[%clk 00:47:48]} {[%emt 00:00:16]} 43. Kh1 {[%clk 00:01:18]} {[%emt 00:00:02]}
Rg3 {[%clk 00:47:55]} {[%emt 00:00:24]} 44. Nf8+ {[%clk 00:01:01]} {[%emt
00:00:47]} Kf6 {[%clk 00:48:21]} {[%emt 00:00:03]} 45. Rxh7 {[%clk 00:00:54]}
{[%emt 00:00:37]} f4 {[%clk 00:48:02]} {[%emt 00:00:49]} 46. Nd7+ {[%clk
00:00:51]} {[%emt 00:00:33]} Ke6 {[%clk 00:46:53]} {[%emt 00:01:39]} 47. Nf8+
{[%clk 00:00:49]} {[%emt 00:00:32]} Kd5 {[%clk 00:47:20]} {[%emt 00:00:03]} 48.
Rd7+ {[%clk 00:00:54]} {[%emt 00:00:25]} Kc4 {[%clk 00:47:35]} {[%emt
00:00:15]} 49. Ne6 {[%clk 00:00:40]} {[%emt 00:00:44]} Rxh3+ {[%clk 00:47:48]}
{[%emt 00:00:18]} 50. Kg1 {[%clk 00:01:04]} {[%emt 00:00:06]} Rg3+ {[%clk
00:48:15]} {[%emt 00:00:02]} 51. Kf2 {[%clk 00:01:29]} {[%emt 00:00:05]} Rg2+
{[%clk 00:47:56]} {[%emt 00:00:50]} 52. Ke1 {[%clk 00:01:48]} {[%emt 00:00:11]}
f3 {[%clk 00:48:20]} {[%emt 00:00:06]} 53. Rd4+ {[%clk 00:01:42]} {[%emt
00:00:36]} Kc3 {[%clk 00:48:44]} {[%emt 00:00:06]} 0-1

[Event "1er Festival international de Cassis 2022"]
[Site "Cassis"]
[Date "2022.05.28"]
[Round "5.6"]
[White "Movsziszian, Karen"]
[Black "Auribault, Louis"]
[Result "1-0"]
[TimeControl "1 h 30 + 30 s"]
[WhiteElo "2467"]
[BlackElo "1819"]

1. g3 {[%clk 00:00:00]} {[%emt 00:10:55]} d5 {[%clk 00:00:00]} {[%emt
00:00:17]} 2. Nf3 {[%clk 01:27:46]} {[%emt 00:04:22]} Nf6 {[%clk 01:30:21]}
{[%emt 00:00:39]} 3. Bg2 {[%clk 01:28:14]} {[%emt 00:00:03]} Bf5 {[%clk
01:26:03]} {[%emt 00:04:47]} 4. O-O {[%clk 01:27:34]} {[%emt 00:01:10]} e6
{[%clk 01:25:50]} {[%emt 00:00:44]} 5. d3 {[%clk 01:27:57]} {[%emt 00:00:07]}
c5 {[%clk 01:24:50]} {[%emt 00:01:30]} 6. Nfd2 {[%clk 01:26:46]} {[%emt
00:01:41]} Nc6 {[%clk 01:21:49]} {[%emt 00:03:31]} 7. e4 {[%clk 01:27:12]}
{[%emt 00:00:04]} Bg6 {[%clk 01:20:07]} {[%emt 00:02:12]} 8. Nc3 {[%clk
01:27:37]} {[%emt 00:00:05]} Be7 {[%clk 01:19:45]} {[%emt 00:00:51]} 9. h3
{[%clk 01:27:49]} {[%emt 00:00:18]} Qd7 {[%clk 01:10:22]} {[%emt 00:09:54]} 10.
f4 {[%emt 00:09:28]} d4 {[%clk 01:09:34]} 11. Ne2 {[%clk 01:20:00]} {[%emt
00:00:38]} h5 {[%clk 01:09:11]} {[%emt 00:00:54]} 12. Nf3 {[%clk 01:19:30]}
{[%emt 00:01:00]} O-O-O {[%clk 01:04:38]} {[%emt 00:05:03]} 13. a3 {[%clk
01:14:30]} {[%emt 00:05:30]} Qe8 {[%clk 00:59:07]} {[%emt 00:06:01]} 14. Bd2
{[%clk 01:12:59]} {[%emt 00:02:01]} c4 {[%clk 00:52:49]} {[%emt 00:06:48]} 15.
Qb1 {[%clk 01:12:10]} {[%emt 00:01:18]} Bc5 {[%clk 00:39:17]} {[%emt 00:14:04]}
16. Kh2 {[%clk 01:08:51]} {[%emt 00:03:48]} Qe7 {[%clk 00:38:07]} {[%emt
00:01:40]} 17. Nh4 {[%clk 01:07:47]} {[%emt 00:01:33]} c3 {[%clk 00:33:13]}
{[%emt 00:05:26]} 18. Be1 {[%clk 01:03:50]} {[%emt 00:04:26]} Rh7 {[%clk
00:25:00]} {[%emt 00:08:42]} 19. Bf2 {[%clk 01:02:02]} {[%emt 00:02:18]} Rdh8
{[%clk 00:23:37]} {[%emt 00:01:53]} 20. Kg1 {[%clk 01:01:34]} {[%emt 00:00:58]}
Ng4 {[%clk 00:13:21]} {[%emt 00:10:48]} 21. hxg4 {[%clk 01:01:57]} {[%emt
00:00:07]} hxg4 {[%clk 00:13:46]} {[%emt 00:00:05]} 22. b4 {[%clk 01:02:02]}
{[%emt 00:00:24]} Rxh4 {[%clk 00:06:08]} {[%emt 00:08:07]} 23. gxh4 {[%clk
01:02:30]} {[%emt 00:00:03]} Bb6 {[%clk 00:05:32]} {[%emt 00:01:06]} 24. b5
{[%clk 01:02:18]} {[%emt 00:00:42]} f5 {[%clk 00:04:28]} {[%emt 00:01:34]} 25.
bxc6 {[%clk 01:00:22]} {[%emt 00:02:26]} fxe4 {[%clk 00:04:35]} {[%emt
00:00:23]} 26. Qb4 {[%clk 00:59:56]} {[%emt 00:00:56]} 1-0

[Event "1er Festival international de Cassis 2022"]
[Site "Cassis"]
[Date "2022.05.28"]
[Round "5.7"]
[White "Dudognon, Thibault"]
[Black "Petrosyan, Armen"]
[Result "1/2-1/2"]
[TimeControl "1 h 30 + 30 s"]
[WhiteElo "2305"]
[BlackElo "2396"]

1. e4 {[%clk 01:30:58]} {[%emt 00:00:02]} c6 {[%clk 01:30:49]} {[%emt
00:00:12]} 2. Nf3 {[%clk 01:31:23]} {[%emt 00:00:04]} d5 {[%clk 01:31:15]}
{[%emt 00:00:05]} 3. d3 {[%clk 01:31:51]} {[%emt 00:00:02]} dxe4 {[%clk
01:31:35]} {[%emt 00:00:10]} 4. dxe4 {[%clk 01:32:17]} {[%emt 00:00:04]} Qxd1+
{[%clk 01:31:58]} {[%emt 00:00:08]} 5. Kxd1 {[%clk 01:32:44]} {[%emt 00:00:02]}
Nf6 {[%clk 01:31:29]} {[%emt 00:00:58]} 6. Nbd2 {[%clk 01:33:11]} {[%emt
00:00:03]} Nbd7 {[%clk 01:31:39]} {[%emt 00:00:21]} 7. Ne1 {[%clk 01:33:36]}
{[%emt 00:00:05]} a5 {[%clk 01:25:44]} {[%emt 00:06:25]} 8. a4 {[%clk
01:33:38]} {[%emt 00:00:28]} h5 {[%clk 01:26:01]} {[%emt 00:00:13]} 9. f3
{[%clk 01:31:33]} {[%emt 00:02:35]} g6 {[%clk 01:26:05]} {[%emt 00:00:26]} 10.
Nc4 {[%clk 01:30:48]} {[%emt 00:01:14]} Bh6 {[%clk 01:25:42]} {[%emt 00:00:53]}
11. Bxh6 {[%clk 01:24:01]} {[%emt 00:07:17]} Rxh6 {[%clk 01:26:01]} {[%emt
00:00:11]} 12. h4 {[%clk 01:24:17]} {[%emt 00:00:13]} Kd8 {[%clk 01:23:09]}
{[%emt 00:03:22]} 13. Nd3 {[%clk 01:23:16]} {[%emt 00:01:31]} Kc7 {[%clk
01:21:14]} {[%emt 00:02:24]} 14. c3 {[%clk 01:18:33]} {[%emt 00:05:14]} Ne8
{[%clk 01:19:13]} {[%emt 00:02:31]} 15. Kc2 {[%clk 01:12:27]} {[%emt 00:06:35]}
Nd6 {[%clk 01:19:02]} {[%emt 00:00:42]} 16. Nxd6 {[%clk 01:12:47]} {[%emt
00:00:10]} exd6 {[%clk 01:19:14]} {[%emt 00:00:18]} 17. g3 {[%clk 01:12:55]}
{[%emt 00:00:22]} Rh8 {[%clk 01:13:32]} {[%emt 00:06:12]} 18. Rd1 {[%clk
01:11:30]} {[%emt 00:01:55]} b6 {[%clk 01:03:33]} {[%emt 00:10:30]} 19. Bh3
{[%clk 01:08:04]} {[%emt 00:03:56]} Nc5 {[%clk 00:41:22]} {[%emt 00:22:41]} 20.
Nxc5 {[%clk 01:04:44]} {[%emt 00:03:50]} bxc5 {[%clk 00:41:39]} {[%emt
00:00:14]} 21. Bxc8 {[%clk 01:04:23]} {[%emt 00:00:50]} Raxc8 {[%clk 00:42:03]}
{[%emt 00:00:06]} 22. Rh2 {[%clk 00:52:49]} {[%emt 00:12:04]} Rhe8 {[%clk
00:35:07]} {[%emt 00:07:26]} 23. Re2 {[%clk 00:49:28]} {[%emt 00:03:51]} Re6
{[%clk 00:34:55]} {[%emt 00:00:41]} 24. Rde1 {[%clk 00:44:32]} {[%emt
00:05:26]} Rce8 {[%clk 00:32:04]} {[%emt 00:03:22]} 25. Kd3 {[%clk 00:43:38]}
{[%emt 00:01:24]} f6 {[%clk 00:30:02]} {[%emt 00:02:31]} 26. f4 {[%clk
00:38:07]} {[%emt 00:06:00]} Kd7 {[%clk 00:27:14]} {[%emt 00:03:19]} 27. b3
{[%clk 00:28:03]} {[%emt 00:10:33]} d5 {[%clk 00:07:54]} {[%emt 00:19:52]} 28.
exd5 {[%clk 00:16:21]} {[%emt 00:12:11]} cxd5 {[%clk 00:08:19]} {[%emt
00:00:05]} 29. Rxe6 {[%clk 00:16:10]} {[%emt 00:00:40]} d4 30. Kxd4 1/2-1/2